[Event "*** Titled Tuesday Blitz"]
[Site "Chess.com"]
[Date "2020.02.04"]
[Round "2"]
[White "korbul"]
[Black "Abund"]
[Result "1-0"]
[WhiteElo "2572"]
[BlackElo "2755"]
[TimeControl "180+2"]
[EndTime "9:25:39 PST"]
[Termination "korbul won by resignation"]

1. d4 {[%clk 0:03:01.9]} 1... Nf6 {[%clk 0:02:59.3]} 2. Nf3 {[%clk 0:03:02.7]}
2... g6 {[%clk 0:03:00.2]} 3. Bg5 {[%clk 0:03:03.2]} 3... Bg7 {[%clk 0:02:57]}
4. Nbd2 {[%clk 0:03:04]} 4... d6 {[%clk 0:02:55.7]} 5. e4 {[%clk 0:03:02.7]}
5... h6 {[%clk 0:02:50.7]} 6. Bh4 {[%clk 0:03:03.1]} 6... g5 {[%clk 0:02:50.5]}
7. Bg3 {[%clk 0:03:03.3]} 7... Nh5 {[%clk 0:02:51.6]} 8. Bc4 {[%clk 0:02:53]}
8... g4 {[%clk 0:02:28.9]} 9. Nh4 {[%clk 0:02:40.8]} 9... Bxd4 {[%clk
0:02:29.9]} 10. c3 {[%clk 0:02:34.3]} 10... Bf6 {[%clk 0:02:26.5]} 11. Qe2
{[%clk 0:02:31.4]} 11... Rg8 {[%clk 0:02:02.7]} 12. Nf5 {[%clk 0:02:22.7]} 12...
Bxf5 {[%clk 0:01:55.1]} 13. exf5 {[%clk 0:02:23.4]} 13... Nc6 {[%clk 0:01:50.1]}
14. O-O-O {[%clk 0:02:21]} 14... Ne5 {[%clk 0:01:40.4]} 15. Bb3 {[%clk
0:02:16.5]} 15... Qd7 {[%clk 0:01:38.1]} 16. Qe4 {[%clk 0:02:00]} 16... c6
{[%clk 0:01:26.8]} 17. Rhe1 {[%clk 0:01:58.3]} 17... Rg5 {[%clk 0:01:24.3]} 18.
Bc2 {[%clk 0:01:53.6]} 18... O-O-O {[%clk 0:01:20.1]} 19. Qa4 {[%clk 0:01:28.6]}
19... Kb8 {[%clk 0:01:17.8]} 20. Ne4 {[%clk 0:01:28.8]} 20... Nxg3 {[%clk
0:01:13.8]} 21. hxg3 {[%clk 0:01:21.6]} 21... Rxf5 {[%clk 0:00:59.9]} 22. Nc5
{[%clk 0:01:20.2]} 22... Qc8 {[%clk 0:01:01]} 23. Bxf5 {[%clk 0:01:13.1]} 23...
Qxf5 {[%clk 0:01:02]} 24. Ne4 {[%clk 0:01:09.5]} 24... Bg7 {[%clk 0:01:01.2]}
25. Qc2 {[%clk 0:00:56.8]} 25... d5 {[%clk 0:00:44.9]} 26. Nc5 {[%clk
0:00:54.9]} 26... Qxc2+ {[%clk 0:00:41.9]} 27. Kxc2 {[%clk 0:00:55.1]} 27... e6
{[%clk 0:00:42]} 28. b3 {[%clk 0:00:53.2]} 28... b6 {[%clk 0:00:42]} 29. Na4
{[%clk 0:00:47.5]} 29... Kc7 {[%clk 0:00:42.1]} 30. Nb2 {[%clk 0:00:48]} 30...
Re8 {[%clk 0:00:38]} 31. Re2 {[%clk 0:00:48]} 31... Nd7 {[%clk 0:00:35.1]} 32.
f3 {[%clk 0:00:48.3]} 32... Ne5 {[%clk 0:00:31.6]} 33. Rf1 {[%clk 0:00:45.7]}
33... Re7 {[%clk 0:00:25]} 34. Nd3 {[%clk 0:00:41.7]} 34... Nxd3 {[%clk
0:00:25.1]} 35. Kxd3 {[%clk 0:00:42.5]} 35... gxf3 {[%clk 0:00:26]} 36. gxf3
{[%clk 0:00:43]} 36... e5 {[%clk 0:00:27.2]} 37. Rh1 {[%clk 0:00:41.4]} 37... f5
{[%clk 0:00:27.3]} 38. Rh5 {[%clk 0:00:41.2]} 38... e4+ {[%clk 0:00:28.2]} 39.
Kd2 {[%clk 0:00:38.3]} 39... Rf7 {[%clk 0:00:28.5]} 40. Rf2 {[%clk 0:00:35.7]}
40... Re7 {[%clk 0:00:26.1]} 41. Re2 {[%clk 0:00:34]} 41... Rf7 {[%clk
0:00:23.2]} 42. Rf2 {[%clk 0:00:29.5]} 42... Bf6 {[%clk 0:00:21]} 43. f4 {[%clk
0:00:25.4]} 43... Bg7 {[%clk 0:00:20.9]} 44. Ke3 {[%clk 0:00:19.7]} 44... Kd6
{[%clk 0:00:22]} 45. Rd2 {[%clk 0:00:20.7]} 45... Ke6 {[%clk 0:00:22.8]} 46. c4
{[%clk 0:00:20.6]} 46... Rf6 {[%clk 0:00:20.2]} 47. cxd5+ {[%clk 0:00:20.9]}
47... cxd5 {[%clk 0:00:21.5]} 48. Rc2 {[%clk 0:00:22.4]} 48... Kd7 {[%clk
0:00:20.5]} 49. Rd2 {[%clk 0:00:20.5]} 49... Kd6 {[%clk 0:00:20.5]} 50. g4
{[%clk 0:00:20.3]} 50... Rf7 {[%clk 0:00:16.9]} 51. gxf5 {[%clk 0:00:21]} 51...
Bf6 {[%clk 0:00:15.7]} 52. Rg2 {[%clk 0:00:21.1]} 52... Re7 {[%clk 0:00:16.1]}
53. Rxh6 {[%clk 0:00:21.5]} 53... d4+ {[%clk 0:00:17.3]} 54. Ke2 {[%clk
0:00:21.6]} 54... Rf7 {[%clk 0:00:18.2]} 55. Rgg6 {[%clk 0:00:22]} 55... Ke7
{[%clk 0:00:19.5]} 56. Kd2 {[%clk 0:00:21.3]} 56... a5 {[%clk 0:00:18.3]} 57. a4
{[%clk 0:00:21.6]} 57... Rf8 {[%clk 0:00:19.6]} 58. Rh7+ {[%clk 0:00:22]} 58...
Kd6 {[%clk 0:00:20.9]} 59. Rb7 {[%clk 0:00:21.7]} 59... Kc5 {[%clk 0:00:21.5]}
60. Rd7 {[%clk 0:00:19.9]} 60... Bh4 {[%clk 0:00:18.4]} 61. Re6 {[%clk
0:00:17.6]} 61... Bf2 {[%clk 0:00:12.4]} 62. Rxe4 {[%clk 0:00:17.9]} 62... Kb4
{[%clk 0:00:11.3]} 63. Rd6 {[%clk 0:00:15.2]} 63... Kxb3 {[%clk 0:00:12.1]} 64.
Rxb6+ {[%clk 0:00:16.2]} 64... Kxa4 {[%clk 0:00:13.4]} 65. f6 {[%clk 0:00:18.1]}
65... Be3+ {[%clk 0:00:09.7]} 66. Kd3 {[%clk 0:00:19.2]} 66... Ka3 {[%clk
0:00:11.1]} 67. Re7 {[%clk 0:00:18.2]} 67... a4 {[%clk 0:00:11.6]} 68. f7 {[%clk
0:00:19.3]} 68... Rc8 {[%clk 0:00:12.7]} 69. Re8 {[%clk 0:00:19.1]} 69... Rc3+
{[%clk 0:00:13.7]} 70. Ke4 {[%clk 0:00:19.9]} 70... Ka2 {[%clk 0:00:14.6]} 71.
f8=Q {[%clk 0:00:20.2]} 71... Rb3 {[%clk 0:00:16.1]} 72. Rxb3 {[%clk 0:00:20.5]}
72... axb3 {[%clk 0:00:17.5]} 73. Ra8+ {[%clk 0:00:20.5]} 73... Kb1 {[%clk
0:00:18.7]} 74. Qb4 {[%clk 0:00:21.2]} 74... Kc2 {[%clk 0:00:19]} 75. Rc8+
{[%clk 0:00:20.9]} 75... Kb2 {[%clk 0:00:19.8]} 76. Kd3 {[%clk 0:00:20.3]} 76...
Ka2 {[%clk 0:00:18.7]} 77. Rb8 {[%clk 0:00:20.7]} 1-0

[Event "*** Titled Tuesday Blitz"]
[Site "Chess.com"]
[Date "2020.02.04"]
[Round "2"]
[White "aa175"]
[Black "AlexanderKing"]
[Result "0-1"]
[WhiteElo "2254"]
[BlackElo "2521"]
[TimeControl "180+2"]
[EndTime "9:25:43 PST"]
[Termination "AlexanderKing won by resignation"]

1. Nf3 {[%clk 0:03:01.9]} 1... d5 {[%clk 0:03:00.6]} 2. e3 {[%clk 0:03:02]} 2...
Nf6 {[%clk 0:03:01.4]} 3. d4 {[%clk 0:03:02.1]} 3... c5 {[%clk 0:03:02.3]} 4. c3
{[%clk 0:03:02.6]} 4... e6 {[%clk 0:03:03]} 5. Nbd2 {[%clk 0:03:03.7]} 5... Nc6
{[%clk 0:03:04.1]} 6. Bd3 {[%clk 0:03:04.6]} 6... Bd6 {[%clk 0:03:05.4]} 7. dxc5
{[%clk 0:03:00.8]} 7... Bxc5 {[%clk 0:03:07.3]} 8. e4 {[%clk 0:03:02.3]} 8...
dxe4 {[%clk 0:03:04.3]} 9. Bxe4 {[%clk 0:02:59.3]} 9... Nxe4 {[%clk 0:03:04.8]}
10. Nxe4 {[%clk 0:03:01.2]} 10... Qxd1+ {[%clk 0:03:05.8]} 11. Kxd1 {[%clk
0:03:03.1]} 11... Be7 {[%clk 0:03:04.4]} 12. Kc2 {[%clk 0:03:03.3]} 12... e5
{[%clk 0:03:00.5]} 13. Re1 {[%clk 0:02:52.1]} 13... O-O {[%clk 0:02:57.7]} 14.
Bg5 {[%clk 0:02:52.7]} 14... f6 {[%clk 0:02:58.2]} 15. Be3 {[%clk 0:02:48.5]}
15... Bf5 {[%clk 0:02:57.4]} 16. Nd2 {[%clk 0:02:48.5]} 16... b6 {[%clk
0:02:56.4]} 17. f3 {[%clk 0:02:44.1]} 17... Rac8 {[%clk 0:02:57.3]} 18. Rad1
{[%clk 0:02:44.3]} 18... Nb4+ {[%clk 0:02:34.4]} 19. Kb1 {[%clk 0:02:38.9]}
19... Nd3 {[%clk 0:02:31.7]} 20. Re2 {[%clk 0:02:38.7]} 20... Nc5 {[%clk
0:02:32.9]} 21. Bxc5 {[%clk 0:02:36]} 21... Bxc5 {[%clk 0:02:34.8]} 22. g4
{[%clk 0:02:26.7]} 22... Bg6 {[%clk 0:02:34.1]} 23. h4 {[%clk 0:02:26.9]} 23...
Be7 {[%clk 0:02:25.3]} 24. h5 {[%clk 0:02:27.4]} 24... Bf7 {[%clk 0:02:26.3]}
25. Ng3 {[%clk 0:02:21.5]} 25... Rfd8 {[%clk 0:02:12.2]} 26. Nf5 {[%clk
0:02:19.7]} 26... Bf8 {[%clk 0:02:12.9]} 27. Rde1 {[%clk 0:01:58.6]} 27... Rd3
{[%clk 0:02:04.3]} 28. Kc2 {[%clk 0:01:54.2]} 28... Rcd8 {[%clk 0:01:57.2]} 29.
Nd4 {[%clk 0:01:50.5]} 29... Rxd2+ {[%clk 0:01:58]} 30. Rxd2 {[%clk 0:01:49.1]}
30... exd4 {[%clk 0:01:58.9]} 31. Rxd4 {[%clk 0:01:51]} 31... Rxd4 {[%clk
0:01:51.8]} 32. cxd4 {[%clk 0:01:52]} 32... Bd5 {[%clk 0:01:53.2]} 33. Re3
{[%clk 0:01:45]} 33... Kf7 {[%clk 0:01:47]} 34. b3 {[%clk 0:01:45.7]} 34... Bd6
{[%clk 0:01:37.6]} 35. Kd1 {[%clk 0:01:38.7]} 35... a5 {[%clk 0:01:36.2]} 36.
Ke2 {[%clk 0:01:30.7]} 36... b5 {[%clk 0:01:27.5]} 37. Rc3 {[%clk 0:01:20.3]}
37... a4 {[%clk 0:01:25]} 38. bxa4 {[%clk 0:01:13.4]} 38... bxa4 {[%clk
0:01:26.9]} 39. Rc2 {[%clk 0:01:10.6]} 39... a3 {[%clk 0:01:20.6]} 40. Ke3
{[%clk 0:01:08.6]} 40... g6 {[%clk 0:01:13.8]} 41. hxg6+ {[%clk 0:01:00.6]}
41... hxg6 {[%clk 0:01:15.7]} 42. f4 {[%clk 0:00:52.5]} 42... Be6 {[%clk
0:01:11]} 43. g5 {[%clk 0:00:44.2]} 43... Bd5 {[%clk 0:01:03]} 44. gxf6 {[%clk
0:00:38.7]} 44... Kxf6 {[%clk 0:01:04.9]} 45. Rd2 {[%clk 0:00:24.6]} 45... Kf5
{[%clk 0:01:00]} 46. Rf2 {[%clk 0:00:25.5]} 46... Bc7 {[%clk 0:00:55.5]} 47. Rf1
{[%clk 0:00:19.4]} 47... Bb8 {[%clk 0:00:39.3]} 48. Rf2 {[%clk 0:00:18.9]} 48...
Bd6 {[%clk 0:00:30.6]} 49. Kd3 {[%clk 0:00:02.6]} 49... Bxf4 {[%clk 0:00:19.6]}
50. Kc3 {[%clk 0:00:03.8]} 50... Ke4 {[%clk 0:00:18.1]} 51. Kb4 {[%clk
0:00:03.9]} 51... Bd6+ {[%clk 0:00:15.8]} 52. Kc3 {[%clk 0:00:05]} 52... g5
{[%clk 0:00:14.6]} 53. Rg2 {[%clk 0:00:05.2]} 53... Kf4 {[%clk 0:00:09.4]} 54.
Rf2+ {[%clk 0:00:06]} 54... Bf3 {[%clk 0:00:07.6]} 55. Kc4 {[%clk 0:00:03.5]}
55... g4 {[%clk 0:00:08.3]} 56. Rc2 {[%clk 0:00:02.9]} 56... g3 {[%clk
0:00:08.9]} 57. d5 {[%clk 0:00:02.9]} 57... g2 {[%clk 0:00:07.8]} 58. Rc1 {[%clk
0:00:04.1]} 58... Ke3 {[%clk 0:00:05.7]} 59. Kb5 {[%clk 0:00:04.4]} 59... Bxd5
{[%clk 0:00:06.4]} 60. Rd1 {[%clk 0:00:05.2]} 60... Bh2 {[%clk 0:00:04.3]} 61.
Kc5 {[%clk 0:00:05.1]} 61... Bxa2 {[%clk 0:00:05.4]} 62. Kb4 {[%clk 0:00:05.1]}
62... Bd5 {[%clk 0:00:04.5]} 63. Kxa3 {[%clk 0:00:04.2]} 63... g1=Q {[%clk
0:00:05]} 64. Rxg1 {[%clk 0:00:04.2]} 64... Bxg1 {[%clk 0:00:06.9]} 65. Kb4
{[%clk 0:00:05.8]} 65... Kd4 {[%clk 0:00:08.1]} 66. Kb5 {[%clk 0:00:06.2]} 66...
Kc3 {[%clk 0:00:07.1]} 67. Ka5 {[%clk 0:00:07.1]} 67... Kc4 {[%clk 0:00:06]} 68.
Ka6 {[%clk 0:00:05.8]} 68... Bc5 {[%clk 0:00:06]} 69. Ka5 {[%clk 0:00:05.6]}
69... Bb7 {[%clk 0:00:06.6]} 70. Ka4 {[%clk 0:00:06.2]} 70... Bb6 {[%clk
0:00:07]} 71. Ka3 {[%clk 0:00:07.2]} 71... Kc3 {[%clk 0:00:08.5]} 72. Ka4 {[%clk
0:00:08.4]} 72... Bc6+ {[%clk 0:00:09.9]} 73. Ka3 {[%clk 0:00:09.3]} 73... Bb5
{[%clk 0:00:10.4]} 74. Ka2 {[%clk 0:00:10.5]} 74... Kc2 {[%clk 0:00:11.6]} 75.
Ka1 {[%clk 0:00:10.9]} 75... Bc5 {[%clk 0:00:10.5]} 0-1

[Event "*** Titled Tuesday Blitz"]
[Site "Chess.com"]
[Date "2020.02.04"]
[Round "2"]
[White "Aygehovit1992"]
[Black "AntonSmirnov"]
[Result "1-0"]
[WhiteElo "2637"]
[BlackElo "2910"]
[TimeControl "180+2"]
[EndTime "9:25:51 PST"]
[Termination "Aygehovit1992 won by resignation"]

1. e4 {[%clk 0:02:59.7]} 1... e6 {[%clk 0:02:58.5]} 2. d4 {[%clk 0:03:00.2]}
2... d5 {[%clk 0:02:59.8]} 3. Nc3 {[%clk 0:03:01.3]} 3... dxe4 {[%clk
0:03:00.1]} 4. Nxe4 {[%clk 0:03:02.4]} 4... Nd7 {[%clk 0:03:01.6]} 5. Nf3 {[%clk
0:03:03.3]} 5... Ngf6 {[%clk 0:03:02.4]} 6. Bg5 {[%clk 0:03:04.8]} 6... h6
{[%clk 0:03:03.1]} 7. Bxf6 {[%clk 0:03:03.8]} 7... Nxf6 {[%clk 0:03:03.8]} 8.
Bb5+ {[%clk 0:03:04.1]} 8... c6 {[%clk 0:03:03.2]} 9. Bd3 {[%clk 0:03:05.1]}
9... Nxe4 {[%clk 0:02:54.5]} 10. Bxe4 {[%clk 0:03:05.7]} 10... c5 {[%clk
0:02:54.9]} 11. c3 {[%clk 0:03:02.6]} 11... cxd4 {[%clk 0:02:53.5]} 12. Nxd4
{[%clk 0:03:04.5]} 12... Bc5 {[%clk 0:02:52.3]} 13. Nb3 {[%clk 0:02:16.8]} 13...
Bb6 {[%clk 0:02:48.9]} 14. a4 {[%clk 0:02:15.8]} 14... Rb8 {[%clk 0:02:35.2]}
15. a5 {[%clk 0:02:14.7]} 15... Qxd1+ {[%clk 0:02:33]} 16. Rxd1 {[%clk
0:02:13.6]} 16... Bc7 {[%clk 0:02:34.2]} 17. Ke2 {[%clk 0:02:14.4]} 17... Ke7
{[%clk 0:02:31.2]} 18. h4 {[%clk 0:02:12.9]} 18... Rd8 {[%clk 0:02:29.6]} 19.
Rxd8 {[%clk 0:02:12.9]} 19... Bxd8 {[%clk 0:02:30.4]} 20. h5 {[%clk 0:02:13.5]}
20... f5 {[%clk 0:02:12.8]} 21. Bd3 {[%clk 0:02:07.9]} 21... Bd7 {[%clk
0:02:11.8]} 22. Rh4 {[%clk 0:01:47.7]} 22... Bc6 {[%clk 0:02:05.2]} 23. f3
{[%clk 0:01:46.9]} 23... Rc8 {[%clk 0:01:58.9]} 24. Rb4 {[%clk 0:01:46]} 24...
b6 {[%clk 0:01:56.4]} 25. axb6 {[%clk 0:01:46.6]} 25... Bxb6 {[%clk 0:01:58.3]}
26. Nd4 {[%clk 0:01:47.3]} 26... Be8 {[%clk 0:01:59.1]} 27. g4 {[%clk
0:01:30.1]} 27... fxg4 {[%clk 0:01:59.4]} 28. fxg4 {[%clk 0:01:32]} 28... Rc5
{[%clk 0:01:53.5]} 29. Bb5 {[%clk 0:01:24.3]} 29... Re5+ {[%clk 0:01:54]} 30.
Kd3 {[%clk 0:01:22.9]} 30... Bxb5+ {[%clk 0:01:13.5]} 31. Rxb5 {[%clk
0:01:16.6]} 31... Re1 {[%clk 0:01:05.3]} 32. g5 {[%clk 0:00:52.8]} 32... hxg5
{[%clk 0:00:51.7]} 33. Rxg5 {[%clk 0:00:53.1]} 33... Kf6 {[%clk 0:00:52.9]} 34.
Rg6+ {[%clk 0:00:53.9]} 34... Kf7 {[%clk 0:00:52.7]} 35. Nc6 {[%clk 0:00:45.1]}
35... Rd1+ {[%clk 0:00:46.3]} 36. Kc4 {[%clk 0:00:45.3]} 36... Rd5 {[%clk
0:00:44.9]} 37. b4 {[%clk 0:00:17.7]} 37... Rxh5 {[%clk 0:00:45.5]} 38. Rg3
{[%clk 0:00:18.2]} 38... Rf5 {[%clk 0:00:40.2]} 39. Kd3 {[%clk 0:00:13.3]} 39...
g5 {[%clk 0:00:25.7]} 40. c4 {[%clk 0:00:13.9]} 40... Kf6 {[%clk 0:00:25]} 41.
c5 {[%clk 0:00:14.8]} 41... Bc7 {[%clk 0:00:26.2]} 42. Rg2 {[%clk 0:00:12.2]}
42... Rf3+ {[%clk 0:00:21.5]} 43. Kc4 {[%clk 0:00:11.6]} 43... Ra3 {[%clk
0:00:21.1]} 44. Rf2+ {[%clk 0:00:10]} 44... Bf4 {[%clk 0:00:21.5]} 45. b5 {[%clk
0:00:10.8]} 45... Ra4+ {[%clk 0:00:21.1]} 46. Kb3 {[%clk 0:00:11.8]} 46... Ra1
{[%clk 0:00:20.8]} 47. Kc4 {[%clk 0:00:07.6]} 47... Rc1+ {[%clk 0:00:19.6]} 48.
Kb4 {[%clk 0:00:08.8]} 48... Rb1+ {[%clk 0:00:20.9]} 49. Kc4 {[%clk 0:00:10]}
49... e5 {[%clk 0:00:20]} 50. Nxa7 {[%clk 0:00:08.9]} 50... e4 {[%clk
0:00:21.5]} 51. b6 {[%clk 0:00:08]} 51... e3 {[%clk 0:00:22.7]} 52. Rc2 {[%clk
0:00:09.3]} 52... g4 {[%clk 0:00:18.2]} 53. Nb5 {[%clk 0:00:10.4]} 53... g3
{[%clk 0:00:18.9]} 54. c6 {[%clk 0:00:11.7]} 54... Ke7 {[%clk 0:00:18.5]} 55. b7
{[%clk 0:00:08.1]} 55... Kd8 {[%clk 0:00:19.6]} 56. Ra2 {[%clk 0:00:08.9]} 56...
Rc1+ {[%clk 0:00:17.7]} 57. Kd5 {[%clk 0:00:09.3]} 57... Ke7 {[%clk 0:00:18.7]}
58. Ra4 {[%clk 0:00:04.9]} 58... g2 {[%clk 0:00:18.6]} 59. Re4+ {[%clk
0:00:05.7]} 59... Kf6 {[%clk 0:00:13.1]} 60. Rxf4+ {[%clk 0:00:06.9]} 60... Kg5
{[%clk 0:00:14.6]} 61. b8=Q {[%clk 0:00:08.8]} 61... g1=Q {[%clk 0:00:15.8]} 62.
Rd4 {[%clk 0:00:08.8]} 62... Qg2+ {[%clk 0:00:16.1]} 63. Re4 {[%clk 0:00:08.4]}
63... Rd1+ {[%clk 0:00:17.2]} 64. Nd4 {[%clk 0:00:09.5]} 64... Rxd4+ {[%clk
0:00:17.1]} 65. Kxd4 {[%clk 0:00:10.3]} 65... Qd2+ {[%clk 0:00:18.7]} 66. Kc5
{[%clk 0:00:10.7]} 66... Qc3+ {[%clk 0:00:14]} 67. Rc4 {[%clk 0:00:11.4]} 67...
Qa5+ {[%clk 0:00:15.1]} 68. Qb5 {[%clk 0:00:11.4]} 68... Qa3+ {[%clk 0:00:08.4]}
69. Kb6+ {[%clk 0:00:12.1]} 69... Kg6 {[%clk 0:00:08]} 70. c7 {[%clk 0:00:13.2]}
1-0

[Event "*** Titled Tuesday Blitz"]
[Site "Chess.com"]
[Date "2020.02.04"]
[Round "2"]
[White "Atanejhad"]
[Black "Sanan_Sjugirov"]
[Result "0-1"]
[WhiteElo "2600"]
[BlackElo "2852"]
[TimeControl "180+2"]
[EndTime "9:25:57 PST"]
[Termination "Sanan_Sjugirov won by resignation"]

1. e4 {[%clk 0:03:01.9]} 1... c5 {[%clk 0:03:00.3]} 2. Nf3 {[%clk 0:03:02.8]}
2... d6 {[%clk 0:03:01.1]} 3. d4 {[%clk 0:03:04.3]} 3... cxd4 {[%clk 0:03:02.4]}
4. Nxd4 {[%clk 0:03:06.2]} 4... Nf6 {[%clk 0:03:03.4]} 5. Nc3 {[%clk 0:03:07.7]}
5... a6 {[%clk 0:03:04.6]} 6. Be3 {[%clk 0:03:08.3]} 6... e5 {[%clk 0:03:04.6]}
7. Nb3 {[%clk 0:03:08.1]} 7... Be6 {[%clk 0:03:04.9]} 8. Qd2 {[%clk 0:03:08.5]}
8... Be7 {[%clk 0:03:02.9]} 9. f3 {[%clk 0:03:09]} 9... h5 {[%clk 0:02:56.7]}
10. O-O-O {[%clk 0:03:08.2]} 10... Nbd7 {[%clk 0:02:56.5]} 11. Nd5 {[%clk
0:03:01.6]} 11... Nxd5 {[%clk 0:02:53.6]} 12. exd5 {[%clk 0:03:03.5]} 12... Bf5
{[%clk 0:02:54.8]} 13. Qb4 {[%clk 0:02:40.8]} 13... b6 {[%clk 0:02:06.2]} 14. g4
{[%clk 0:02:24.4]} 14... Bg6 {[%clk 0:01:56.8]} 15. Kb1 {[%clk 0:02:11.3]} 15...
hxg4 {[%clk 0:01:51]} 16. fxg4 {[%clk 0:02:10.8]} 16... Nc5 {[%clk 0:01:39.3]}
17. Nd2 {[%clk 0:01:26.2]} 17... Qc7 {[%clk 0:01:26.3]} 18. Nc4 {[%clk 0:00:52]}
18... Rb8 {[%clk 0:01:20]} 19. Bd3 {[%clk 0:00:36.4]} 19... Nxd3 {[%clk
0:01:16.4]} 20. cxd3 {[%clk 0:00:38.1]} 20... Rh3 {[%clk 0:00:32.9]} 21. Bxb6
{[%clk 0:00:38.4]} 21... Qd7 {[%clk 0:00:33.3]} 22. Ka1 {[%clk 0:00:28.9]} 22...
Qb5 {[%clk 0:00:33.7]} 23. Qxb5+ {[%clk 0:00:19.3]} 23... axb5 {[%clk
0:00:34.4]} 24. Bc7 {[%clk 0:00:21.2]} 24... Ra8 {[%clk 0:00:18.2]} 25. Nxd6+
{[%clk 0:00:18.7]} 25... Kd7 {[%clk 0:00:19.2]} 26. Nxb5 {[%clk 0:00:20.2]}
26... Bxd3 {[%clk 0:00:19.1]} 27. d6 {[%clk 0:00:21.6]} 27... Bxb5 {[%clk
0:00:15.6]} 28. dxe7+ {[%clk 0:00:22.7]} 28... Kxc7 {[%clk 0:00:16.9]} 29. Rd5
{[%clk 0:00:22.6]} 29... Kb6 {[%clk 0:00:05.5]} 30. Rd8 {[%clk 0:00:21.2]} 30...
Rh8 {[%clk 0:00:06.1]} 31. Rhd1 {[%clk 0:00:22.6]} 31... e4 {[%clk 0:00:06.2]}
32. Rxa8 {[%clk 0:00:23]} 32... Rxa8 {[%clk 0:00:06.7]} 33. Rd8 {[%clk
0:00:24.8]} 33... Kb7 {[%clk 0:00:07.6]} 34. b3 {[%clk 0:00:24.6]} 34... e3
{[%clk 0:00:08.5]} 35. Rd5 {[%clk 0:00:24.7]} 35... Bc6 {[%clk 0:00:07.7]} 36.
Re5 {[%clk 0:00:26.2]} 36... Kc7 {[%clk 0:00:07.5]} 37. Rxe3 {[%clk 0:00:26.7]}
37... Kd6 {[%clk 0:00:08.6]} 38. Kb2 {[%clk 0:00:27.6]} 38... Bd7 {[%clk
0:00:09.4]} 39. g5 {[%clk 0:00:27]} 39... Be6 {[%clk 0:00:09.7]} 40. a4 {[%clk
0:00:28.3]} 40... Kxe7 {[%clk 0:00:10.4]} 41. Ka3 {[%clk 0:00:29.3]} 41... Kd6
{[%clk 0:00:10.5]} 42. h4 {[%clk 0:00:25.7]} 42... f5 {[%clk 0:00:09.3]} 43.
gxf6 {[%clk 0:00:25.2]} 43... gxf6 {[%clk 0:00:10.6]} 44. h5 {[%clk 0:00:22]}
44... f5 {[%clk 0:00:12]} 45. b4 {[%clk 0:00:23]} 45... f4 {[%clk 0:00:13.1]}
46. Rd3+ {[%clk 0:00:24.4]} 46... Bd5 {[%clk 0:00:11.8]} 47. b5 {[%clk 0:00:25]}
47... f3 {[%clk 0:00:12.8]} 48. Rd2 {[%clk 0:00:26.4]} 48... Kc5 {[%clk
0:00:11.7]} 49. h6 {[%clk 0:00:27.6]} 49... Rh8 {[%clk 0:00:11.9]} 50. Rh2
{[%clk 0:00:28.9]} 50... Kd4 {[%clk 0:00:05.8]} 51. Kb4 {[%clk 0:00:29.5]} 51...
Ke3 {[%clk 0:00:06.9]} 52. Kc5 {[%clk 0:00:30.1]} 52... Be4 {[%clk 0:00:07.9]}
53. a5 {[%clk 0:00:28.6]} 53... f2 {[%clk 0:00:09]} 54. Rxf2 {[%clk 0:00:28.8]}
54... Kxf2 {[%clk 0:00:10.9]} 55. a6 {[%clk 0:00:29.1]} 55... Rxh6 {[%clk
0:00:11.3]} 56. b6 {[%clk 0:00:30.2]} 56... Rh7 {[%clk 0:00:10.7]} 57. Kd4
{[%clk 0:00:20.5]} 57... Ba8 {[%clk 0:00:10.2]} 58. Kc5 {[%clk 0:00:22.4]} 58...
Ke3 {[%clk 0:00:10]} 59. Kb5 {[%clk 0:00:22.4]} 59... Kd4 {[%clk 0:00:10.1]} 60.
Ka5 {[%clk 0:00:19.6]} 60... Kc5 {[%clk 0:00:08.8]} 61. a7 {[%clk 0:00:21.5]}
61... Bb7 {[%clk 0:00:08.7]} 62. Ka4 {[%clk 0:00:21.2]} 62... Kxb6 {[%clk
0:00:09.4]} 63. a8=Q {[%clk 0:00:23.1]} 63... Bxa8 {[%clk 0:00:10.2]} 64. Kb4
{[%clk 0:00:24.2]} 64... Rh4+ {[%clk 0:00:11.3]} 0-1